{"text_format":"1","workbook":"xlsx","n_sheets":1,"sheets":["Sayfa2"],"not_rendered":{"charts":0,"images":1,"macros":1,"external_links":0,"defined_names":58,"comments":0,"pivot_tables":0},"unopened":[],"bounds":{"document_bytes":16777216,"sheet_cells":100000,"rows_first":2000,"rows_last":500,"rows_between":2000,"halvings":0,"cell_chars":16384,"cell_head_chars":4096},"cells_cut":0,"cells_raw":0,"read":"whole","date_system":"1900"}

{"sheet":"Sayfa2","index":0,"n_rows":318,"n_cols":73,"rows_kept":318,"cut":false,"hidden":false,"merged":[[16,1,17,1],[0,6,0,7],[1,6,1,7],[2,6,2,7],[3,6,3,7],[0,2,4,5],[16,8,17,8],[8,0,14,0],[6,0,6,8],[8,3,8,5],[11,3,11,5],[12,3,12,5],[13,3,13,5],[9,3,9,5],[10,3,10,5],[8,6,12,6],[14,3,14,5],[16,2,17,2],[16,0,17,0],[16,3,17,3],[16,4,17,4],[16,7,17,7]]}
[null,null,"GEBZE TEKNİK ÜNİVERSİTESİ REKTÖRLÜĞÜ\nÖN DEĞERLENDİRME FORMU  ",null,null,null,"Form No:",null,"FR-0446",null,null,"UNVAN","DERECE","ADET","SONUÇ",null,null,"Birimler","Rektörlük","Bölümler","Rektörlük","Mühendislik Fakültesi","Temel Bilimler Fakültesi","İşletme Fakültesi","Mimarlık Fakültesi","Havacılık ve Uzay Bilimleri Fakültesi","Bilişim Teknolojileri Enstitüsü","Biyoteknoloji Enstitüsü","Enerji Teknolojileri Enstitüsü","Lisansüstü Eğitim Enstitüsü","Nanoteknoloji Enstitüsü","Savunma Teknolojileri Enstitüsü","Siber Güvenlik Meslek Yüksekokulu","Ulaşım Teknolojileri Enstitüsü","Yer ve Deniz Bilimleri Enstitüsü","Anabilm Dalı","Beden Eğitimi ve Spor","Enformatik","Türkçe Hazırlık","Yabancı Diller","Bilgisayar Mühendisliği","Biyomühendislik","Çevre Mühendisliği","Elektronik Mühendisliği","Endüstri Mühendisliği","Harita Mühendisliği","İnşaat Mühendisliği","Kimya Mühendisliği","Makine Mühendisliği","Malzeme Bilimi ve Mühendisliği","Fizik","Kimya","Matematik","Moleküler Biyoloji ve Genetik","İktisat","İşletme","Strateji Bilimi","Yönetim Bilişim Sistemleri","Endüstriyel Tasarım","Mimarlık","Şehir ve Bölge Planlama","Uçak Mühendisliği","Bilişim Teknolojileri ABD","Biyoteknoloji ABD","Enerji Teknolojileri ABD","Nanobilim ve Nanomühendislik ABD","Savunma Teknolojileri ABD","Ulaşım Teknolojileri ABD","Bilgisayar Teknolojileri","LEE","Rektörlük Uygulamalı Birim","Rektörlük Ders Verilecek Birim","Yer ve Deniz Bilimleri ABD"]
[null,null,null,null,null,null,"Yayın Tarihi:",null,"03.08.2018",null,{"$f":"SUBSTITUTE(D9,\" \",\"_\")","v":"Siber_Güvenlik_Meslek_Yüksekokulu"},"Araştırma Görevlisi",1,1,"Katılacak-Sınava Girebilir",null,null,null,"Mühendislik Fakültesi",null,"Rektörlük Uygulamalı Birim","Bilgisayar Mühendisliği","Fizik","İktisat","Endüstriyel Tasarım","Uçak Mühendisliği","Bilişim Teknolojileri ABD","Biyoteknoloji ABD","Enerji Teknolojileri ABD","LEE","Nanobilim ve Nanomühendislik ABD","Savunma Teknolojileri ABD","Bilgisayar Teknolojileri","Ulaşım Teknolojileri ABD","Yer ve Deniz Bilimleri ABD",null,"-","-","-","-","Bilgisayar Donanımı","Biyoelektronik","Çevre Mühendisliği Temel Bilimleri","Devreler ve Sistemler Teorisi","Endüstri Mühendisliği ABD","Fotogrametri","Geoteknik","Gıda Teknolojisi","Enerji Sistemleri","Elektronik Malzemeler","Atom ve Molekül Fiziği","Analitik Kimya","Analiz ve Fonksiyonlar Teorisi","Hidrobiyoloji","Ekonometri ve Kantitatif İktisat","Sayısal Yöntemler","Bilim ve Teknoloji Stratejileri","Yönetim Bilişim Sistemleri","Endüstriyel Tasarım","Bina Bilgisi","Bölge Planlama","Uçak Mühendisliği","-","-","-","-","-","-","Siber Güv. Analistliği ve Operatörlüğü","-","-","-","-"]
[null,null,null,null,null,null,"Değiştirme No:",null,8,null,{"$f":"SUBSTITUTE(D10,\" \",\"_\")","v":"Bilgisayar_Teknolojileri"},"Öğretim Görevlisi (Tarih-Türkçe-Uyg. Birim)",2,2,"Katılmayacak-Sıralamaya Giremedi",null,null,null,"Temel Bilimler Fakültesi",null,"Rektörlük Ders Verilecek Birim","Biyomühendislik","Kimya","İşletme","Mimarlık",null,null,null,null,null,null,null,null,null,null,null,null,null,null,null,"Bilgisayar Mühendisliği Kuramsal Temeller","Biyomalzeme","Çevre Yönetimi ve Planlaması","Elektromanyetik Alanlar ve Mikrodalga Tekniği","Yöneylem Araştırması","Jeodezi","Hidrolik","Kimyasal Teknolojiler","Makine Teorisi Sistem Dinamiği ve Kontrol","Polimer Malzemeler","Genel Fizik","Anorganik Kimya","Cebir ve Sayılar Teorisi","Genel Biyoloji","İktisadi Gelişme ve Uluslararası İktisat","Muhasebe ve Finansman","Milli Güvenlik Stratejileri",null,null,"Mimari Tasarım Kuram ve Yöntemleri","Şehircilik"]
[null,null,null,null,null,null,"Değiştirme Tarihi:",null,"2023-11-06",null,null,"Öğretim Görevlisi (Yabancı Dil Eğitimi veren\\Öğrenim yapan birim)",3,3,"Geçersiz Başvuru-Eksik Evrak",null,null,null,"İşletme Fakültesi",null,"Beden Eğitimi ve Spor","Çevre Mühendisliği","Matematik","Strateji Bilimi","Şehir ve Bölge Planlama",null,null,null,null,null,null,null,null,null,null,null,null,null,null,null,"Bilgisayar Yazılımı","Biyomekanik","Hava Kirliliği ve Kontrol Teknolojisi","Elektronik",null,"Kamu Ölçmeleri","Ulaştırma","Proses ve Reaktör Tasarımı","Tasarım ve İmalat Mühendisliği","Malzeme Bilimi","Medikal Fizik","Bitki Kimyası","Geometri","Genetik","İktisat Politikası","Üretim Yönetimi ve Pazarlama","Yönetim Stratejileri",null,null,"Mimarlık Tarihi"]
[null,null,null,null,null,null,null,null,null,null,null,null,4,4,"Geçersiz Başvuru-İlan Şartlarını Sağlamıyor",null,null,null,"Mimarlık Fakültesi",null,"Enformatik","Elektronik Mühendisliği","Moleküler Biyoloji ve Genetik","Yönetim Bilişim Sistemleri",null,null,null,null,null,null,null,null,null,null,null,null,null,null,null,null,"Kontrol ve Kumanda Sistemler",null,"Su Kirliliği ve Atıksu Kontrol Teknolojisi","Telekomünikasyon",null,"Kartografya","Yapı","Temel İşlemler ve Termodinamik","Mekanik","Metalurji","Nükleer Fizik","Biyokimya","Matematiğin Temelleri ve Lojik","Hücre Biyolojisi","İktisat Teorisi","Yönetim ve Organizasyon",null,null,null,"Restorasyon"]
[null,null,null,null,null,null,null,null,null,null,null,null,5,5,null,null,null,null,"Havacılık ve Uzay Bilimleri Fakültesi",null,"Türkçe Hazırlık","Endüstri Mühendisliği",null,null,null,null,null,null,null,null,null,null,null,null,null,null,null,null,null,null,null,null,"Toprak Kirliliği ve Katı Atık Uzaklaştırma Teknolojisi",null,null,"Ölçme Tekniği","Yapı Malzemeleri",null,"Akışkanlar Mekaniği","Seramik Malzemeleri","Katıhal Fiziği","Fizikokimya","Topoloji","Moleküler Biyoloji",null,null,null,null,null,"Yapı Bilgisi"]
["09/11/2018 tarihli ve 30590 sayılı Resmi Gazete'de yayımlanan \"Öğretim Üyesi Dışındaki Öğretim Elemanı Kadrolarına Yapılacak Atamalarda Uygulanacak Merkezi Sınav İle Giriş Sınavlarına İlişkin Usul ve Esaslar Hakkında Yönetmelik\" hükümleri çerçevesinde aşağıda birim ve kadro ünvanı belirtilen öğretim elemanı kadrolarına yapılan başvurular anılan önetmeliğin 10.maddesi uyarınca ön değerlendirmeye tabi tutulmuş olup aşağıdaki şekilde sonuçlandırılmıştır.",null,null,null,null,null,null,null,null,null,null,null,6,6,null,null,null,null,"Bilişim Teknolojileri Enstitüsü",null,"Yabancı Diller","Harita Mühendisliği",null,null,null,null,null,null,null,null,null,null,null,null,null,null,null,null,null,null,null,null,null,null,null,null,"Yapım Yönetimi",null,null,null,null,"Organik Kimya","Uygulamalı Matematik"]
[null,null,null,null,null,null,null,null,null,null,null,null,7,7,null,null,null,null,"Biyoteknoloji Enstitüsü",null,null,"İnşaat Mühendisliği",null,null,null,null,null,null,null,null,null,null,null,null,null,null,null,null,null,null,null,null,null,null,null,null,"Mekanik"]
["İLAN EDİLEN",null,"Birim :","Siber Güvenlik Meslek Yüksekokulu",null,null,"GİRİŞ SINAVI","Tarihi :",null,null,null,null,null,8,null,null,null,null,"Enerji Teknolojileri Enstitüsü",null,null,"Kimya Mühendisliği"]
[null,null,"Bölüm :","Bilgisayar Teknolojileri",null,null,null,null,null,null,null,null,null,9,null,null,null,null,"Lisansüstü Eğitim Enstitüsü",null,null,"Makine Mühendisliği"]
[null,null,"Anabilim Dalı/Program :","Siber Güv. Analistliği ve Operatörlüğü",null,null,null,null,null,null,null,null,null,null,null,null,null,null,"Nanoteknoloji Enstitüsü",null,null,"Malzeme Bilimi ve Mühendisliği"]
[null,null,"Kadro Unvanı :","Öğretim Görevlisi (Yabancı Dil Eğitimi veren\\Öğrenim yapan birim)",null,null,null,"Saati :",null,null,null,null,null,10,null,null,null,null,"Savunma Teknolojileri Enstitüsü"]
[null,null,"Kadro Derecesi :",7,null,null,null,"Yeri :",null,null,null,null,null,null,null,null,null,null,"Ulaşım Teknolojileri Enstitüsü"]
[null,null,"Kadro Adedi :",null,null,null,null,null,null,null,null,null,null,null,null,null,null,null,"Yer ve Deniz Bilimleri Enstitüsü"]
[null,null,"İlan Numarası :",null,null,null,null,null,null,null,null,null,null,null,null,null,null,null,"Siber Güvenlik Meslek Yüksekokulu"]
[]
["S.\nNo","T.C. KİMLİK NO","ADI SOYADI","ALES \nPUANI","Y.DİL \nPUANI","ALES","Y. DİL","TOPLAM","SONUÇ (GİRİŞ SINAVINA KATILIP-KATILAMAYACAĞI)"]
[null,null,null,null,null,{"$f":"IF(D12=\"Araştırma Görevlisi\",0.6,IF(D12=\"Öğretim Görevlisi (Tarih-Türkçe-Uyg. Birim)\",0.6,0.4))","v":0.4},{"$f":"IF(D12=\"Araştırma Görevlisi\",0.4,IF(D12=\"Öğretim Görevlisi (Tarih-Türkçe-Uyg. Birim)\",0.4,0.6))","v":0.6}]
[1,null,null,null,null,{"$f":"ROUND((D19*$F$18),4)","v":0},{"$f":"ROUND((E19*$G$18),4)","v":0},{"$f":"SUM(F19+G19)","v":0}]
[2,null,null,null,null,0,0,0]
[3,null,null,null,null,0,0,0]
[4,null,null,null,null,0,0,0]
[5,null,null,null,null,0,0,0]
[6,null,null,null,null,0,0,0]
[7,null,null,null,null,0,0,0]
[8,null,null,null,null,0,0,0]
[9,null,null,null,null,0,0,0]
[10,null,null,null,null,0,0,0]
[null,null,null,null,null,0,0,0]
[null,null,null,null,null,0,0,0]
[null,null,null,null,null,0,0,0]
[null,null,null,null,null,0,0,0]
[null,null,null,null,null,0,0,0]
[null,null,null,null,null,0,0,0]
[null,null,null,null,null,0,0,0]
[null,null,null,null,null,0,0,0]
[null,null,null,null,null,0,0,0]
[null,null,null,null,null,0,0,0]
[null,null,null,null,null,0,0,0]
[null,null,null,null,null,0,0,0]
[null,null,null,null,null,0,0,0]
[null,null,null,null,null,0,0,0]
[null,null,null,null,null,0,0,0]
[null,null,null,null,null,0,0,0]
[null,null,null,null,null,0,0,0]
[null,null,null,null,null,0,0,0]
[null,null,null,null,null,0,0,0]
[null,null,null,null,null,0,0,0]
[null,null,null,null,null,0,0,0]
[null,null,null,null,null,0,0,0]
[null,null,null,null,null,0,0,0]
[null,null,null,null,null,0,0,0]
[null,null,null,null,null,0,0,0]
[null,null,null,null,null,0,0,0]
[null,null,null,null,null,0,0,0]
[null,null,null,null,null,0,0,0]
[null,null,null,null,null,0,0,0]
[null,null,null,null,null,0,0,0]
[null,null,null,null,null,0,0,0]
[null,null,null,null,null,0,0,0]
[null,null,null,null,null,0,0,0]
[null,null,null,null,null,0,0,0]
[null,null,null,null,null,0,0,0]
[null,null,null,null,null,0,0,0]
[null,null,null,null,null,0,0,0]
[null,null,null,null,null,0,0,0]
[null,null,null,null,null,0,0,0]
[null,null,null,null,null,0,0,0]
[null,null,null,null,null,0,0,0]
[null,null,null,null,null,0,0,0]
[null,null,null,null,null,0,0,0]
[null,null,null,null,null,0,0,0]
[null,null,null,null,null,0,0,0]
[null,null,null,null,null,0,0,0]
[null,null,null,null,null,0,0,0]
[null,null,null,null,null,0,0,0]
[null,null,null,null,null,0,0,0]
[null,null,null,null,null,0,0,0]
[null,null,null,null,null,0,0,0]
[null,null,null,null,null,0,0,0]
[null,null,null,null,null,0,0,0]
[null,null,null,null,null,0,0,0]
[null,null,null,null,null,{"$f":"ROUND((D83*$F$18),4)","v":0},{"$f":"ROUND((E83*$G$18),4)","v":0},{"$f":"SUM(F83+G83)","v":0}]
[null,null,null,null,null,0,0,0]
[null,null,null,null,null,0,0,0]
[null,null,null,null,null,0,0,0]
[null,null,null,null,null,0,0,0]
[null,null,null,null,null,0,0,0]
[null,null,null,null,null,0,0,0]
[null,null,null,null,null,0,0,0]
[null,null,null,null,null,0,0,0]
[null,null,null,null,null,0,0,0]
[null,null,null,null,null,0,0,0]
[null,null,null,null,null,0,0,0]
[null,null,null,null,null,0,0,0]
[null,null,null,null,null,0,0,0]
[null,null,null,null,null,0,0,0]
[null,null,null,null,null,0,0,0]
[null,null,null,null,null,0,0,0]
[null,null,null,null,null,0,0,0]
[null,null,null,null,null,0,0,0]
[null,null,null,null,null,0,0,0]
[null,null,null,null,null,0,0,0]
[null,null,null,null,null,0,0,0]
[null,null,null,null,null,0,0,0]
[null,null,null,null,null,0,0,0]
[null,null,null,null,null,0,0,0]
[null,null,null,null,null,0,0,0]
[null,null,null,null,null,0,0,0]
[null,null,null,null,null,0,0,0]
[null,null,null,null,null,0,0,0]
[null,null,null,null,null,0,0,0]
[null,null,null,null,null,0,0,0]
[null,null,null,null,null,0,0,0]
[null,null,null,null,null,0,0,0]
[null,null,null,null,null,0,0,0]
[null,null,null,null,null,0,0,0]
[null,null,null,null,null,0,0,0]
[null,null,null,null,null,0,0,0]
[null,null,null,null,null,0,0,0]
[null,null,null,null,null,0,0,0]
[null,null,null,null,null,0,0,0]
[null,null,null,null,null,0,0,0]
[null,null,null,null,null,0,0,0]
[null,null,null,null,null,0,0,0]
[null,null,null,null,null,0,0,0]
[null,null,null,null,null,0,0,0]
[null,null,null,null,null,0,0,0]
[null,null,null,null,null,0,0,0]
[null,null,null,null,null,0,0,0]
[null,null,null,null,null,0,0,0]
[null,null,null,null,null,0,0,0]
[null,null,null,null,null,0,0,0]
[null,null,null,null,null,0,0,0]
[null,null,null,null,null,0,0,0]
[null,null,null,null,null,0,0,0]
[null,null,null,null,null,0,0,0]
[null,null,null,null,null,0,0,0]
[null,null,null,null,null,0,0,0]
[null,null,null,null,null,0,0,0]
[null,null,null,null,null,0,0,0]
[null,null,null,null,null,0,0,0]
[null,null,null,null,null,0,0,0]
[null,null,null,null,null,0,0,0]
[null,null,null,null,null,0,0,0]
[null,null,null,null,null,0,0,0]
[null,null,null,null,null,{"$f":"ROUND((D147*$F$18),4)","v":0},{"$f":"ROUND((E147*$G$18),4)","v":0},{"$f":"SUM(F147+G147)","v":0}]
[null,null,null,null,null,0,0,0]
[null,null,null,null,null,0,0,0]
[null,null,null,null,null,0,0,0]
[null,null,null,null,null,0,0,0]
[null,null,null,null,null,0,0,0]
[null,null,null,null,null,0,0,0]
[null,null,null,null,null,0,0,0]
[null,null,null,null,null,0,0,0]
[null,null,null,null,null,0,0,0]
[null,null,null,null,null,0,0,0]
[null,null,null,null,null,0,0,0]
[null,null,null,null,null,0,0,0]
[null,null,null,null,null,0,0,0]
[null,null,null,null,null,0,0,0]
[null,null,null,null,null,0,0,0]
[null,null,null,null,null,0,0,0]
[null,null,null,null,null,0,0,0]
[null,null,null,null,null,0,0,0]
[null,null,null,null,null,0,0,0]
[null,null,null,null,null,0,0,0]
[null,null,null,null,null,0,0,0]
[null,null,null,null,null,0,0,0]
[null,null,null,null,null,0,0,0]
[null,null,null,null,null,0,0,0]
[null,null,null,null,null,0,0,0]
[null,null,null,null,null,0,0,0]
[null,null,null,null,null,0,0,0]
[null,null,null,null,null,0,0,0]
[null,null,null,null,null,0,0,0]
[null,null,null,null,null,0,0,0]
[null,null,null,null,null,0,0,0]
[null,null,null,null,null,0,0,0]
[null,null,null,null,null,0,0,0]
[null,null,null,null,null,0,0,0]
[null,null,null,null,null,0,0,0]
[null,null,null,null,null,0,0,0]
[null,null,null,null,null,0,0,0]
[null,null,null,null,null,0,0,0]
[null,null,null,null,null,0,0,0]
[null,null,null,null,null,0,0,0]
[null,null,null,null,null,0,0,0]
[null,null,null,null,null,0,0,0]
[null,null,null,null,null,0,0,0]
[null,null,null,null,null,0,0,0]
[null,null,null,null,null,0,0,0]
[null,null,null,null,null,0,0,0]
[null,null,null,null,null,0,0,0]
[null,null,null,null,null,0,0,0]
[null,null,null,null,null,0,0,0]
[null,null,null,null,null,0,0,0]
[null,null,null,null,null,0,0,0]
[null,null,null,null,null,0,0,0]
[null,null,null,null,null,0,0,0]
[null,null,null,null,null,0,0,0]
[null,null,null,null,null,0,0,0]
[null,null,null,null,null,0,0,0]
[null,null,null,null,null,0,0,0]
[null,null,null,null,null,0,0,0]
[null,null,null,null,null,0,0,0]
[null,null,null,null,null,0,0,0]
[null,null,null,null,null,0,0,0]
[null,null,null,null,null,0,0,0]
[null,null,null,null,null,0,0,0]
[null,null,null,null,null,{"$f":"ROUND((D211*$F$18),4)","v":0},{"$f":"ROUND((E211*$G$18),4)","v":0},{"$f":"SUM(F211+G211)","v":0}]
[null,null,null,null,null,0,0,0]
[null,null,null,null,null,0,0,0]
[null,null,null,null,null,0,0,0]
[null,null,null,null,null,0,0,0]
[null,null,null,null,null,0,0,0]
[null,null,null,null,null,0,0,0]
[null,null,null,null,null,0,0,0]
[null,null,null,null,null,0,0,0]
[null,null,null,null,null,0,0,0]
[null,null,null,null,null,0,0,0]
[null,null,null,null,null,0,0,0]
[null,null,null,null,null,0,0,0]
[null,null,null,null,null,0,0,0]
[null,null,null,null,null,0,0,0]
[null,null,null,null,null,0,0,0]
[null,null,null,null,null,0,0,0]
[null,null,null,null,null,0,0,0]
[null,null,null,null,null,0,0,0]
[null,null,null,null,null,0,0,0]
[null,null,null,null,null,0,0,0]
[null,null,null,null,null,0,0,0]
[null,null,null,null,null,0,0,0]
[null,null,null,null,null,0,0,0]
[null,null,null,null,null,0,0,0]
[null,null,null,null,null,0,0,0]
[null,null,null,null,null,0,0,0]
[null,null,null,null,null,0,0,0]
[null,null,null,null,null,0,0,0]
[null,null,null,null,null,0,0,0]
[null,null,null,null,null,0,0,0]
[null,null,null,null,null,0,0,0]
[null,null,null,null,null,0,0,0]
[null,null,null,null,null,0,0,0]
[null,null,null,null,null,0,0,0]
[null,null,null,null,null,0,0,0]
[null,null,null,null,null,0,0,0]
[null,null,null,null,null,0,0,0]
[null,null,null,null,null,0,0,0]
[null,null,null,null,null,0,0,0]
[null,null,null,null,null,0,0,0]
[null,null,null,null,null,0,0,0]
[null,null,null,null,null,0,0,0]
[null,null,null,null,null,0,0,0]
[null,null,null,null,null,0,0,0]
[null,null,null,null,null,0,0,0]
[null,null,null,null,null,0,0,0]
[null,null,null,null,null,0,0,0]
[null,null,null,null,null,0,0,0]
[null,null,null,null,null,0,0,0]
[null,null,null,null,null,0,0,0]
[null,null,null,null,null,0,0,0]
[null,null,null,null,null,0,0,0]
[null,null,null,null,null,0,0,0]
[null,null,null,null,null,0,0,0]
[null,null,null,null,null,0,0,0]
[null,null,null,null,null,0,0,0]
[null,null,null,null,null,0,0,0]
[null,null,null,null,null,0,0,0]
[null,null,null,null,null,0,0,0]
[null,null,null,null,null,0,0,0]
[null,null,null,null,null,0,0,0]
[null,null,null,null,null,0,0,0]
[null,null,null,null,null,0,0,0]
[null,null,null,null,null,{"$f":"ROUND((D275*$F$18),4)","v":0},{"$f":"ROUND((E275*$G$18),4)","v":0},{"$f":"SUM(F275+G275)","v":0}]
[null,null,null,null,null,0,0,0]
[null,null,null,null,null,0,0,0]
[null,null,null,null,null,0,0,0]
[null,null,null,null,null,0,0,0]
[null,null,null,null,null,0,0,0]
[null,null,null,null,null,0,0,0]
[null,null,null,null,null,0,0,0]
[null,null,null,null,null,0,0,0]
[null,null,null,null,null,0,0,0]
[null,null,null,null,null,0,0,0]
[null,null,null,null,null,0,0,0]
[null,null,null,null,null,0,0,0]
[null,null,null,null,null,0,0,0]
[null,null,null,null,null,0,0,0]
[null,null,null,null,null,0,0,0]
[null,null,null,null,null,0,0,0]
[null,null,null,null,null,0,0,0]
[null,null,null,null,null,0,0,0]
[null,null,null,null,null,0,0,0]
[null,null,null,null,null,0,0,0]
[null,null,null,null,null,0,0,0]
[null,null,null,null,null,0,0,0]
[null,null,null,null,null,0,0,0]
[null,null,null,null,null,0,0,0]
[null,null,null,null,null,0,0,0]
[null,null,null,null,null,0,0,0]
[null,null,null,null,null,0,0,0]
[null,null,null,null,null,0,0,0]
[null,null,null,null,null,0,0,0]
[null,null,null,null,null,0,0,0]
[null,null,null,null,null,0,0,0]
[null,null,null,null,null,0,0,0]
[null,null,null,null,null,0,0,0]
[null,null,null,null,null,0,0,0]
[null,null,null,null,null,0,0,0]
[null,null,null,null,null,0,0,0]
[null,null,null,null,null,0,0,0]
[null,null,null,null,null,0,0,0]
[null,null,null,null,null,0,0,0]
[null,null,null,null,null,0,0,0]
[null,null,null,null,null,0,0,0]
[null,null,null,null,null,0,0,0]
[null,null,null,null,null,0,0,0]